Workbook

Sheet Enero
A7: DIRECCION DE SERVICIOS DE ATENCION A EMERGENCIAS EXTRAHOSPITALARIAS
A8: EJECUCION DEL GASTO Y APLICACIONES FINANCIERAS
A9: AÑO 2025
A10: VALORES EN RD$
A12: DETALLE | B12: PRESUPUESTO APROBADO | C12: PRESUPUESTO MODIFICADO | D12: GASTO DEVENGADO | E12: TOTAL
D13: ENERO
A14: 2 - GASTOS
A15: 2.1 - REMUNERACIONES Y CONTRIBUCIONES | B15: =SUM(B16:B18) -> 5,020,714,334.00 | C15: =SUM(C16:C18) -> 5,020,714,334.00 | D15: =SUM(D16:D18) -> 373,430,616.97 | E15: 373,430,616.97
A16: 2.1.1 - REMUNERACIONES | B16: 3,853,917,853.00 | C16: 3,853,917,853.00 | D16: 302,343,687.24 | E16: =SUM(D16:D16) -> 302,343,687.24
A17: 2.1.2 - SOBRESUELDOS | B17: 625,539,822.00 | C17: 625,539,822.00 | D17: 24,599,328.16 | E17: =SUM(D17:D17) -> 24,599,328.16
A18: 2.1.5 - CONTRIBUCIONES A LA SEGURIDAD SOCIAL | B18: 541,256,659.00 | C18: 541,256,659.00 | D18: 46,487,601.57 | E18: =SUM(D18:D18) -> 46,487,601.57
A19: 2.2 - CONTRATACIÓN DE SERVICIOS | B19: =SUM(B20:B28) -> 1,322,019,695.00 | C19: =SUM(C20:C28) -> 1,322,019,695.00 | D19: =SUM(D20:D28) -> 1,291,323.33 | E19: 1,291,323.33
A20: 2.2.1 - SERVICIOS BÁSICOS | B20: 18,810,011.00 | C20: 18,810,011.00 | D20: 1,186,303.33 | E20: =SUM(D20:D20) -> 1,186,303.33
A21: 2.2.2 - PUBLICIDAD, IMPRESIÓN Y ENCUADERNACIÓN | B21: 3,582,980.00 | C21: 3,582,980.00 | D21: 0.00 | E21: 0.00
A22: 2.2.3 - VIÁTICOS | B22: 6,653,550.00 | C22: 6,653,550.00 | D22: 0.00 | E22: 0.00
A23: 2.2.4 - TRANSPORTE Y ALMACENAJE | B23: 5,000.00 | C23: 5,000.00 | D23: 0.00 | E23: 0.00
A24: 2.2.5 - ALQUILERES Y RENTAS | B24: 53,651,027.00 | C24: 53,651,027.00 | D24: 105,020.00 | E24: 105,020.00
A25: 2.2.6 - SEGUROS | B25: 223,000,000.00 | C25: 223,000,000.00 | D25: 0.00 | E25: 0.00
A26: 2.2.7 - SERVICIOS DE CONSERVACIÓN, REPARACIONES MENORES E INSTALACIONES TEMPORALES | B26: 168,356,378.00 | C26: 168,356,378.00 | D26: 0.00 | E26: 0.00
A27: 2.2.8 - OTROS SERVICIOS NO INCLUIDOS EN CONCEPTOS ANTERIORES | B27: 7,750,000.00 | C27: 7,750,000.00 | D27: 0.00 | E27: 0.00
A28: 2.2.9 - OTRAS CONTRATACIONES DE SERVICIOS | B28: 840,210,749.00 | C28: 840,210,749.00 | D28: 0.00 | E28: 0.00
A29: 2.3 - MATERIALES Y SUMINISTROS | B29: =SUM(B30:B38) -> 240,517,792.00 | C29: =SUM(C30:C38) -> 240,517,792.00 | D29: =SUM(D30:D38) -> 0.00 | E29: 0.00
A30: 2.3.1 - ALIMENTOS Y PRODUCTOS AGROFORESTALES | B30: 1,327,700.00 | C30: 1,327,700.00 | D30: 0.00 | E30: =SUM(D30:D30) -> 0.00
A31: 2.3.2 - TEXTILES Y VESTUARIOS | B31: 40,000,000.00 | C31: 40,000,000.00 | D31: 0.00 | E31: 0.00
A32: 2.3.3 - PRODUCTOS DE PAPEL, CARTÓN E IMPRESOS | B32: 2,589,627.00 | C32: 2,589,627.00 | D32: 0.00 | E32: 0.00
A33: 2.3.4 - PRODUCTOS FARMACÉUTICOS | B33: 3,000,000.00 | C33: 3,000,000.00 | D33: 0.00 | E33: 0.00
A34: 2.3.5 - PRODUCTOS DE CUERO, CAUCHO Y PLÁSTICO | B34: 11,125,532.00 | C34: 11,125,532.00 | D34: 0.00 | E34: 0.00
A35: 2.3.6 - PRODUCTOS DE MINERALES, METÁLICOS Y NO METÁLICOS | B35: 1,370,761.00 | C35: 1,370,761.00 | D35: 0.00 | E35: 0.00
A36: 2.3.7 - COMBUSTIBLES, LUBRICANTES, PRODUCTOS QUÍMICOS Y CONEXOS | B36: 141,337,772.00 | C36: 141,337,772.00 | D36: 0.00 | E36: 0.00
A37: 2.3.8 GASTOS QUE SE ASIGNARÁN DURANTE EL EJERCICIO (ART. 32 Y 33 LEY 423-06) A | B37: 0.00 | C37: 0.00 | D37: 0.00 | E37: 0.00
A38: 2.3.9 - PRODUCTOS Y ÚTILES VARIOS | B38: 39,766,400.00 | C38: 39,766,400.00 | D38: 0.00 | E38: 0.00
A39: 2.4 TRANSFERENCIAS CORRIENTES | B39: =SUM(B40:B47) -> 0.00 | C39: =SUM(C40:C47) -> 0.00 | D39: =SUM(D40:D47) -> 0.00 | E39: 0.00
A40: 2.4.1 TRANSFERENCIAS CORRIENTES AL SECTOR PRIVADO | B40: 0.00 | C40: 0.00 | D40: 0.00 | E40: =SUM(D40:D40) -> 0.00
A41: 2.4.2 TRANSFERENCIAS CORRIENTES AL GOBIERNO GENERAL NACIONAL | B41: 0.00 | C41: 0.00 | D41: 0.00 | E41: 0.00
A42: 2.4.3 TRANSFERENCIAS CORRIENTES A GOBIERNOS GENERALES LOCALES | B42: 0.00 | C42: 0.00 | D42: 0.00 | E42: 0.00
A43: 2.4.4 TRANSFERENCIAS CORRIENTES A EMPRESAS PÚBLICAS NO FINANCIERAS | B43: 0.00 | C43: 0.00 | D43: 0.00 | E43: 0.00
A44: 2.4.5 TRANSFERENCIAS CORRIENTES A INSTITUCIONES PÚBLICAS FINANCIERAS | B44: 0.00 | C44: 0.00 | D44: 0.00 | E44: 0.00
A45: 2.4.6 SUBVENCIONES | B45: 0.00 | C45: 0.00 | D45: 0.00 | E45: 0.00
A46: 2.4.7 TRANSFERENCIAS CORRIENTES AL SECTOR EXTERNO | B46: 0.00 | C46: 0.00 | D46: 0.00 | E46: 0.00
A47: 2.4.9 TRANSFERENCIAS CORRIENTES A OTRAS INSTITUCIONES PÚBLICAS | B47: 0.00 | C47: 0.00 | D47: 0.00 | E47: 0.00
A48: 2.5 TRANSFERENCIAS DE CAPITAL | B48: =SUM(B49:B55) -> 0.00 | C48: =SUM(C49:C55) -> 0.00 | D48: =SUM(D49:D55) -> 0.00 | E48: 0.00
A49: 2.5.1 TRANSFERENCIAS DE CAPITAL AL SECTOR PRIVADO | B49: 0.00 | C49: 0.00 | D49: 0.00 | E49: =SUM(D49:D49) -> 0.00
A50: 2.5.2 TRANSFERENCIAS DE CAPITAL AL GOBIERNO GENERAL NACIONAL | B50: 0.00 | C50: 0.00 | D50: 0.00 | E50: 0.00
A51: 2.5.3 TRANSFERENCIAS DE CAPITAL A GOBIERNOS GENERALES LOCALES | B51: 0.00 | C51: 0.00 | D51: 0.00 | E51: 0.00
A52: 2.5.4 TRANSFERENCIAS DE CAPITAL A EMPRESAS PÚBLICAS NO FINANCIERAS | B52: 0.00 | C52: 0.00 | D52: 0.00 | E52: 0.00
A53: 2.5.5 TRANSFERENCIAS DE CAPITAL A INSTITUCIONES PÚBLICAS FINANCIERAS | B53: 0.00 | C53: 0.00 | D53: 0.00 | E53: 0.00
A54: 2.5.6 TRANSFERENCIAS DE CAPITAL AL SECTOR EXTERNO | B54: 0.00 | C54: 0.00 | D54: 0.00 | E54: 0.00
A55: 2.5.9 TRANSFERENCIAS DE CAPITAL A OTRAS INSTITUCIONES PÚBLICAS | B55: 0.00 | C55: 0.00 | D55: 0.00 | E55: 0.00
A56: 2.6 - BIENES MUEBLES, INMUEBLES E INTANGIBLES | B56: =SUM(B57:B65) -> 215,068,308.00 | C56: =SUM(C57:C65) -> 215,068,308.00 | D56: =SUM(D57:D65) -> 0.00 | E56: 0.00
A57: 2.6.1 - MOBILIARIO Y EQUIPO | B57: 24,217,358.00 | C57: 24,217,358.00 | D57: 0.00 | E57: =SUM(D57:D57) -> 0.00
A58: 2.6.2 - MOBILIARIO Y EQUIPO EDUCACIONAL Y RECREATIVO | B58: 1,500,000.00 | C58: 1,500,000.00 | D58: 0.00 | E58: 0.00
A59: 2.6.3 - EQUIPO E INSTRUMENTAL, CIENTÍFICO Y LABORATORIO | B59: 103,700,000.00 | C59: 103,700,000.00 | D59: 0.00 | E59: 0.00
A60: 2.6.4 - VEHÍCULOS Y EQUIPO DE TRANSPORTE, TRACCIÓN Y ELEVACIÓN | B60: 80,850,950.00 | C60: 80,850,950.00 | D60: 0.00 | E60: 0.00
A61: 2.6.5 - MAQUINARIA, OTROS EQUIPOS Y HERRAMIENTAS | B61: 3,300,000.00 | C61: 3,300,000.00 | D61: 0.00 | E61: 0.00
A62: 2.6.6 EQUIPOS DE DEFENSA Y SEGURIDAD | B62: 1,500,000.00 | C62: 1,500,000.00 | D62: 0.00 | E62: 0.00
A63: 2.6.7 ACTIVOS BIOLÓGICOS | B63: 0.00 | C63: 0.00 | D63: 0.00 | E63: 0.00
A64: 2.6.8 BIENES INTANGIBLES | B64: 0.00 | C64: 0.00 | D64: 0.00 | E64: 0.00
A65: 2.6.9 EDIFICIOS, ESTRUCTURAS, TIERRAS, TERRENOS Y OBJETOS DE VALOR | B65: 0.00 | C65: 0.00 | D65: 0.00 | E65: 0.00
A66: 2.7 - OBRAS | B66: =SUM(B67:B67) -> 458,511,661.00 | C66: =SUM(C67:C67) -> 458,511,661.00 | D66: =SUM(D67:D67) -> 0.00 | E66: 0.00
A67: 2.7.1 - OBRAS EN EDIFICACIONES | B67: 458,511,661.00 | C67: 458,511,661.00 | D67: 0.00 | E67: =SUM(D67:D67) -> 0.00
A68: 2.7.2 INFRAESTRUCTURA | B68: 0.00 | C68: 0.00 | D68: 0.00 | E68: =SUM(D68:D68) -> 0.00
A69: 2.7.3 CONSTRUCCIONES EN BIENES CONCESIONADOS | B69: 0.00 | C69: 0.00 | D69: 0.00 | E69: =SUM(D69:D69) -> 0.00
A70: 2.7.4 GASTOS QUE SE ASIGNARÁN DURANTE EL EJERCICIO PARA INVERSIÓN (ART. 32 Y 33 LEY 423-06) | B70: 0.00 | C70: 0.00 | D70: 0.00 | E70: =SUM(D70:D70) -> 0.00
A71: 2.8 - ADQUISICION DE ACTIVOS FINANCIEROS CON FINES DE POLÍTICA | B71: =B72+B73 -> 0.00 | C71: =C72+C73 -> 0.00 | D71: =D72+D73 -> 0.00 | E71: 0.00
A72: 2.8.1-CONCESION DE PRESTAMOS | B72: 0.00 | C72: 0.00 | D72: 0.00 | E72: =SUM(D72:D72) -> 0.00
A73: 2.8.2-ADQUISICION DE TITULOS VALORES REPRESENTATIVOS DE DEUDA | B73: 0.00 | C73: 0.00 | D73: 0.00 | E73: 0.00
A74: 2.9-GASTOS FINANCIEROS | B74: =SUM(B75:B77) -> 0.00 | C74: =SUM(C75:C77) -> 0.00 | D74: =SUM(D75:D77) -> 0.00 | E74: 0.00
A75: 2.9.1-INTERESES DE LA DEUDA PUBLICA INTERNA | B75: 0.00 | C75: 0.00 | D75: 0.00 | E75: =SUM(D75:D75) -> 0.00
A76: 2.9.2-INTERESES DE LA DEUDA PUBLICA EXTERNA | B76: 0.00 | C76: 0.00 | D76: 0.00 | E76: 0.00
A77: 2.9.4-COMISIONES Y OTROS GASTOS BANCARIOS DE LA DEUDA PUBLICA | B77: 0.00 | C77: 0.00 | D77: 0.00 | E77: 0.00
A78: TOTAL GASTOS | B78: =B74+B71+B66+B56+B48+B39+B29+B19+B15 -> 7,256,831,790.00 | C78: =C74+C71+C66+C56+C48+C39+C29+C19+C15 -> 7,256,831,790.00 | D78: =D74+D71+D66+D56+D48+D39+D29+D19+D15 -> 374,721,940.30 | E78: 374,721,940.30
A79: 4-APLICACIONES FINANCIERAS
A80: 4.1-INCREMENTO DE ACTIVOS FINANCIEROS | B80: =SUM(B81:B82) -> 0.00 | C80: =SUM(C81:C82) -> 0.00 | D80: 0.00 | E80: 0.00
A81: 4.1.1-INCREMENTO DE ACTIVOS FINANCIEROS CORRIENTES | B81: 0.00 | C81: 0.00 | D81: 0.00 | E81: =SUM(D81:D81) -> 0.00
A82: 4.1.2-INCREMENTO DE ACTIVOS FINANCIEROS NO CORRIENTES | B82: 0.00 | C82: 0.00 | D82: 0.00 | E82: 0.00
A83: 4.2-DISMINUCION DE PASIVOS | B83: =SUM(B84:B85) -> 0.00 | C83: =SUM(C84:C85) -> 0.00 | D83: 0.00 | E83: 0.00
A84: 4.2.1-DISMINUCION DE PASIVOS CORRIENTES | B84: 0.00 | C84: 0.00 | D84: 0.00 | E84: =SUM(D84:D84) -> 0.00
A85: 4.2.2-DISMINUCION DE PASIVOS NO CORRIENTES | B85: 0.00 | C85: 0.00 | D85: 0.00 | E85: 0.00
A86: 4.3-DISMINUCION DE FONDOS DE TERCEROS | B86: =B87 -> 0.00 | C86: =C87 -> 0.00 | D86: 0.00 | E86: 0.00
A87: 4.3.5-DISMINUCION DEPOSITOS FONDOS DE TERCEROS | B87: 0.00 | C87: 0.00 | D87: 0.00 | E87: 0.00
A88: TOTAL APLICACIONES FINANCIERAS | B88: =B86+B83+B80 -> 0.00 | C88: =C86+C83+C80 -> 0.00 | D88: 0.00 | E88: 0.00
A90: TOTAL GASTOS Y APLICACIONES FINANCIERAS | B90: =B88+B78 -> 7,256,831,790.00 | C90: =C88+C78 -> 7,256,831,790.00 | D90: 374,721,940.30 | E90: 374,721,940.30
A91: FUENTE: REPORTE DEL -SIGEF
A92: NOTAS:
A93: 1. GASTO DEVENGADO.
A94: 2. SE PRESENTA EL GASTO POR MES; CADA MES SE DEBE ACTUALIZAR EL GASTO DEVENGADO DE LOS MESES ANTERIORES.
A95: 3. SE PRESENTA LA CLASIFICACIÓN OBJETAL DEL GASTO AL NIVEL DE CUENTA.
A96: 4. FECHA DE IMPUTACIÓN: 31/01/2025
A97: 5. FECHA DE REGISTRO: 31/01/2025
